Cogmind - Beta 15 @@@ ROGUE MODE // 2025.07.13 @ 22:08:09 Player: beans Result: Destroyed by G-47 Trooper with Particle Gun Performance ------------- Evolutions (2) 1000 Regions Visited (5) 1000 Robots Destroyed (15) 75 Value Destroyed (431) 431 Prototype IDs (24) 480 Alien Tech Used (0) 0 Bonus (300) 300 TOTAL SCORE: 3286 Bonus ------- Aligned with FarCom 300 Cogmind --------- Core Integrity 0/550 Matter 142/300 Energy 100/100 System Corruption 0% Temperature Cool (9) Movement Core (50) Location -8/Materials Parts ------- > --- POWER (1) -------- (None) > --- PROPULSION (2) --- (None) > --- UTILITY (5) ------ Signal Interpreter Modified TNC > --- WEAPON (3) ------- Katana > --- INVENTORY (5) ---- (None) Peak State ------------ > --- POWER ------------ (None) > --- PROPULSION ------- Hover Unit Hover Unit > --- UTILITY ---------- Signal Interpreter Modified TNC > --- WEAPON ----------- Shock Rifle Flak Cannon Grenade Launcher > --- INVENTORY -------- Light Treads Light Treads Assault Rifle Light Assault Rifle Grenade Launcher [Rating: 16] Favorites ----------- Power None Propulsion Hover Unit Treads Light Treads Hover Unit Hover Unit Utility Signal Interpreter Processor Signal Interpreter Weapon Medium Laser Energy Gun Medium Laser Ballistic Gun Light Assault Rifle Ballistic Cannon Assault Cannon Launcher Grenade Launcher Slashing Weapon Katana Build | -11 -10 -10 -10 -9 -8 ------- Run | Yrd Mat Min Exi Min Mat Slots Evolved 4 | . . . . . 4 Power . | . . . . . . Propulsion . | . . . . . . Utility 3 | . . . . . 3 Weapon 1 | . . . . . 1 Parts Attached 17 | 5 4 . 1 . 7 Power . | . . . . . . Engine . | . . . . . . Core . | . . . . . . Reactor . | . . . . . . Propulsion 4 | 2 2 . . . . Treads 2 | 2 . . . . . Leg . | . . . . . . Wheel . | . . . . . . Hover 2 | . 2 . . . . Flight . | . . . . . . Utility 2 | . 1 . 1 . . Device . | . . . . . . Storage . | . . . . . . Processor 2 | . 1 . 1 . . Hackware . | . . . . . . Protection . | . . . . . . Artifact . | . . . . . . Weapon 11 | 3 1 . . . 7 Energy Gun 4 | 1 . . . . 3 Energy Cannon . | . . . . . . Ballistic Gun 2 | 2 . . . . . Ballistic Cannon 2 | . . . . . 2 Launcher 2 | . 1 . . . 1 Special Weapon . | . . . . . . Impact Weapon . | . . . . . . Slashing Weapon 1 | . . . . . 1 Piercing Weapon . | . . . . . . Special Melee Weapon . | . . . . . . Unidentified Prototypes 1 | . . . . . 1 Parts Lost 12 | . . . . . 12 Power . | . . . . . . Propulsion 4 | . . . . . 4 Utility . | . . . . . . Weapon 8 | . . . . . 8 Highest Loss Streak 9 | . . . . . 9 To Critical Strikes . | . . . . . . Average Backups 3 | . 3 5 5 5 2 Power . | . . . . . . Propulsion 1 | . 1 2 2 2 . Utility . | . . . . . . Weapon 2 | . 2 3 3 3 1 Tool/Special . | . . . . . . Unused Backups . | . . . . . . Power . | . . . . . . Propulsion . | . . . . . . Utility . | . . . . . . Weapon . | . . . . . . Tool/Special . | . . . . . . Average Slot Usage (%) 63 | . 63 71 78 85 43 Treads 2 | . 12 . . . . Hover 17 | . 15 28 28 28 6 Processor 18 | . 6 14 21 28 18 Energy Gun 10 | . 14 14 14 14 5 Ballistic Gun 2 | . 4 . . . 3 Ballistic Cannon 1 | . . . . . 4 Launcher 9 | . 9 14 14 14 4 Peak Build Rating 16 | 4 5 5 11 11 16 Average Rating 9 | 3 4 5 7 11 11 On Entrance 6 | . 4 5 5 11 11 Naked Turns . | . . . . . . Heaviest Build 12 | 4 5 5 5 5 12 Greatest Support 40 | 40 40 12 12 12 40 Greatest Overweight (x) 3 | . . . . . 3 Average Overweight (x) . | . . . . . . Largest Inventory Capacity 5 | 5 5 5 5 5 5 Average Capacity 5 | 5 5 5 5 5 5 Most Carried 5 | 2 5 5 5 5 5 Average Carried 3 | . 3 5 5 5 2 Final Capacity 5 | 5 5 5 5 5 5 Final Carried 5 | 1 5 5 5 5 . Class Distribution -------------------- 87% | Mutant 12% | Skirmisher Dominant Class ---------------- Mutant | -10/Materials Mutant | -10/Mines Mutant | -10/Exiles Mutant | -9/Mines Mutant | -8/Materials Resources | -11 -10 -10 -10 -9 -8 ----------- Run | Yrd Mat Min Exi Min Mat Matter Collected 437 | 162 24 . . . 251 Remotely . | . . . . . . Salvage Created 493 | . 24 . . . 469 Parts 31 | . 5 . . . 26 Haulers Intercepted . | . . . . . . Recyclers Shooed . | . . . . . . Parts Field Recycled . | . . . . . . Retrieved Matter . | . . . . . . Parts Self-Destructed . | . . . . . . Prevented . | . . . . . . Kills | -11 -10 -10 -10 -9 -8 ------- Run | Yrd Mat Min Exi Min Mat Combat Hostiles Destroyed 7 | . . . . . 7 Melee 4 | . . . . . 4 Guns 1 | . . . . . 1 Cannons 1 | . . . . . 1 AOE 1 | . . . . . 1 Classes Destroyed 7 | . 1 . . . 6 Worker 2 | . . . . . 2 Builder 1 | . . . . . 1 Recycler 2 | . . . . . 2 Watcher 3 | . 2 . . . 1 Grunt 3 | . . . . . 3 Duelist 2 | . . . . . 2 Sentry 2 | . . . . . 2 Best Kill Streak 4 | . 2 . . . 4 Combat Bots Only 4 | . . . . . 4 Max Kills in Single Turn 2 | . 1 . . . 2 Gunslinging . | . . . . . . Exploded 1 | . . . . . 1 Melee 1 | . . . . . 1 Uniques/NPCs Destroyed . | . . . . . . Combat | -11 -10 -10 -10 -9 -8 -------- Run | Yrd Mat Min Exi Min Mat Hostile Shots Fired 130 | . . . . . 130 Missed 32 | . . . . . 32 Hits 98 | . . . . . 98 Melee 2 | . . . . . 2 Projectile 96 | . . . . . 96 Critical Strikes 6 | . . . . . 6 Damage Taken 1633 | . 72 . . . 1561 Core 555 | . . . . . 555 Absorbed by Shields . | . . . . . . Core Remaining (%) 100 | 100 . . . 100 . Volleys Fired 28 | . 3 . . . 25 Largest 3 | . 2 . . . 3 Hottest 135 | . 80 . . . 135 Shots Fired 51 | . 6 . . . 45 Gun 24 | . 4 . . . 20 Cannon 16 | . . . . . 16 Launcher 11 | . 2 . . . 9 Special . | . . . . . . Kinetic 24 | . 1 . . . 23 Thermal 7 | . 3 . . . 4 Explosive 11 | . 2 . . . 9 Electromagnetic 9 | . . . . . 9 Robot Hit Streak 11 | . 1 . . . 11 Robot Miss Streak 6 | . . . . . 6 Penetration Max . | . . . . . . Secondary Targets . | . . . . . . Shots Hit Robots 34 | . 1 . . . 33 Core Hits 32 | . 2 . . . 30 Critical Kills . | . . . . . . Critical Parts Destroyed . | . . . . . . Critical Strikes 2 | . . . . . 2 Sever 2 | . . . . . 2 Melee Attacks 12 | . . . . . 12 Impact . | . . . . . . Slashing 12 | . . . . . 12 Piercing . | . . . . . . Sneak Attacks . | . . . . . . Combat Hostiles . | . . . . . . Follow-up Attacks . | . . . . . . Damage Inflicted 1106 | . 92 . . . 1014 Guns 142 | . 12 . . . 130 Cannons 248 | . . . . . 248 Explosions 443 | . 80 . . . 363 Melee 273 | . . . . . 273 Ramming . | . . . . . . Kinetic 281 | . . . . . 281 Thermal 43 | . 12 . . . 31 Explosive 443 | . 80 . . . 363 Electromagnetic 66 | . . . . . 66 Impact . | . . . . . . Slashing 273 | . . . . . 273 Piercing . | . . . . . . Highest Corruption . | . . . . . . Average Corruption . | . . . . . . Corruption Purged . | . . . . . . Corruption Blocked . | . . . . . . Overload Shots . | . . . . . . Overflow Damage 10 | . 10 . . . . Projectiles . | . . . . . . Explosions 10 | . 10 . . . . Melee . | . . . . . . Knockbacks 7 | . . . . . 7 Impact . | . . . . . . Kinetic 7 | . . . . . 7 Secondary . | . . . . . . Self-Inflicted Damage 93 | . 72 . . . 21 Shots 4 | . 2 . . . 2 Rammed . | . . . . . . Targets Rammed . | . . . . . . Kicked . | . . . . . . Crushed . | . . . . . . Highest Temperature 169 | . 6 . . . 169 Average Temperature 78 | . 3 . . . 85 Received Heat Transfer 918 | . . . . . 918 Siege Activations . | . . . . . . Martial Activations . | . . . . . . Shielding Activations . | . . . . . . Robots Disrupted . | . . . . . . Combat Hostiles . | . . . . . . Robots Corrupted . | . . . . . . Combat Hostiles . | . . . . . . Parts Fried . | . . . . . . Impact Corruptions . | . . . . . . Robots Melted . | . . . . . . Combat Hostiles . | . . . . . . Parts Melted . | . . . . . . Heat Transferred 111 | . 37 . . . 74 Parts Sabotaged . | . . . . . . Parts Stolen . | . . . . . . Parts Stripped . | . . . . . . Power Chain Reactions . | . . . . . . Alert | -11 -10 -10 -10 -9 -8 ------- Run | Yrd Mat Min Exi Min Mat Maximum Alert Level . | . . . . . . Low Security (%) 100 | 100 100 100 . 100 100 Level 1 . | . . . . . . Level 2 . | . . . . . . Level 3 . | . . . . . . Level 4 . | . . . . . . Level 5 . | . . . . . . High Security . | . . . . . . Max Security . | . . . . . . Peak Influence 152 | . 72 6 . . 152 Initial 6 | . . 6 . . . Average 30 | . 29 6 . . 55 Influence Increases 465 | . 77 . . . 388 Destroy 0b10 Robot/C 140 | . . . . . 140 Destroy 0b10 Robot/NC 40 | . 10 . . . 30 Destroy Leader 46 | . 4 . . . 42 Successful Hack 5 | . 5 . . . . Disable Machine 45 | . 30 . . . 15 Destroy Structure 69 | . 28 . . . 41 Partial Spotted 30 | . . . . . 30 Lose Combat Pursuer 90 | . . . . . 90 Influence Decreases 323 | . 60 11 6 . 246 Entered New Map 17 | . . 11 6 . . Time Decay 199 | . 60 . . . 139 Lost Part 107 | . . . . . 107 Squads Dispatched 4 | . . . . . 4 Investigation . | . . . . . . Extermination . | . . . . . . Reinforcement 1 | . . . . . 1 Assault . | . . . . . . Garrison 3 | . . . . . 3 Intercept . | . . . . . . Searches Triggered . | . . . . . . Construction Impeded 1 | . . . . . 1 Haulers Reinforced . | . . . . . . Active Scanning Responses . | . . . . . . Cargo Convoy Interrupts . | . . . . . . Stealth | -11 -10 -10 -10 -9 -8 --------- Run | Yrd Mat Min Exi Min Mat Distress Signals 2 | . . . . . 2 Communications Jammed . | . . . . . . Distress Signals . | . . . . . . Times Spotted 20 | . 2 . . . 18 Peak Tracking Total 7 | . 1 . . . 7 Tactical Retreats 1 | . . . . . 1 Traps | -11 -10 -10 -10 -9 -8 ------- Run | Yrd Mat Min Exi Min Mat Traps Triggered 1 | . 1 . . . . Indirectly . | . . . . . . Trap Hack Attempts . | . . . . . . Triggered . | . . . . . . Disarmed . | . . . . . . Reprogrammed . | . . . . . . Reused . | . . . . . . Traps Extracted . | . . . . . . Installed . | . . . . . . Triggered . | . . . . . . Machines | -11 -10 -10 -10 -9 -8 ---------- Run | Yrd Mat Min Exi Min Mat Machines Disabled 3 | . 2 . . . 1 Max in Single Turn 2 | . 2 . . . 1 Machines Repaired . | . . . . . . Machines Dismantled . | . . . . . . Machines Sabotaged . | . . . . . . Overloaded Fab Kills . | . . . . . . Hacking | -11 -10 -10 -10 -9 -8 --------- Run | Yrd Mat Min Exi Min Mat Machines Accessed 3 | . 1 . 2 . . Terminals 1 | . 1 . . . . Fabricators . | . . . . . . Repair Stations . | . . . . . . Recycling Units . | . . . . . . Scanalyzers . | . . . . . . Garrison Access . | . . . . . . Total Hacks 28 | . 4 . 24 . . Successful 26 | . 2 . 24 . . Failed 2 | . 2 . . . . Catastrophic . | . . . . . . Database Lockouts . | . . . . . . Manual 1 | . . . 1 . . Terminals 4 | . 4 . . . . Fabricators . | . . . . . . Repair Stations . | . . . . . . Recycling Units . | . . . . . . Scanalyzers . | . . . . . . Garrison Access . | . . . . . . Terminal Hacks 26 | . 2 . 24 . . Record 23 | . . . 23 . . Security Status 1 | . 1 . . . . Reinforcement Status 1 | . 1 . . . . Proto ID Catalog 1 | . . . 1 . . Fabricator Hacks . | . . . . . . Repair Station Hacks . | . . . . . . Recycling Unit Hacks . | . . . . . . Scanalyzer . | . . . . . . Garrison Access Hacks . | . . . . . . Unauthorized Hacks . | . . . . . . Terminals . | . . . . . . Fabricators . | . . . . . . Repair Stations . | . . . . . . Recycling Units . | . . . . . . Scanalyzers . | . . . . . . Garrison Access . | . . . . . . Data Cores Recovered . | . . . . . . Used . | . . . . . . Hacking Detections . | . . . . . . Full Trace Events . | . . . . . . Feedback Events . | . . . . . . Feedback Blocked . | . . . . . . Robot Schematics Acquired . | . . . . . . Robots Built . | . . . . . . Authchips . | . . . . . . Time . | . . . . . . Total Robot Build Rating . | . . . . . . Part Schematics Acquired . | . . . . . . Parts Built . | . . . . . . Authchips . | . . . . . . Time . | . . . . . . Total Part Build Rating . | . . . . . . Parts Repaired . | . . . . . . Time . | . . . . . . Parts Recycled . | . . . . . . Recycled Matter . | . . . . . . Retrieved Matter . | . . . . . . Retrieved Components . | . . . . . . Parts Scanalyzed . | . . . . . . Part Schematics Acquired . | . . . . . . Parts Damaged . | . . . . . . Bothacking | -11 -10 -10 -10 -9 -8 ------------ Run | Yrd Mat Min Exi Min Mat Used RIF Installer . | . . . . . . Robots Hacked . | . . . . . . Non-combat . | . . . . . . Combat . | . . . . . . Robot Hacks Applied . | . . . . . . Relay Couplers Released . | . . . . . . Fabnet Peak Effective % . | . . . . . . Robots Rewired . | . . . . . . Allies Hacked . | . . . . . . Hacks Repelled . | . . . . . . Allies | -11 -10 -10 -10 -9 -8 -------- Run | Yrd Mat Min Exi Min Mat Total Allies . | . . . . . . Largest Group . | . . . . . . Highest-Rated Group . | . . . . . . Highest-Rated Ally . | . . . . . . Total Orders . | . . . . . . Ally Attacks . | . . . . . . Total Damage . | . . . . . . Kills . | . . . . . . Allies Corrupted . | . . . . . . Allies Melted . | . . . . . . Intel | -11 -10 -10 -10 -9 -8 ------- Run | Yrd Mat Min Exi Min Mat Active Infowar (turns) 622 | . . . 63 203 356 T.N.C. 622 | . . . 63 203 356 Robot Analysis Total . | . . . . . . Derelict Logs Recovered 1 | . . . . 1 . Drone Launches . | . . . . . . Drone Recoveries . | . . . . . . Exploration | -11 -10 -10 -10 -9 -8 ------------- Run | Yrd Mat Min Exi Min Mat Turns Passed 928 | 53 170 16 130 203 356 Spaces Moved 891 | 35 202 29 229 160 236 Core 153 | 11 . . . . 142 Treads 60 | 24 34 . . . 2 Legs . | . . . . . . Wheels . | . . . . . . Hover 678 | . 168 29 229 160 92 Flight . | . . . . . . Fastest Speed 50 | 50 56 56 56 56 50 Average Speed 70 | 125 73 56 56 56 86 Slowest Speed 200 | 160 160 56 56 56 200 Overloaded Moves . | . . . . . . Propulsion Burnouts . | . . . . . . Robots Hopped . | . . . . . . Potential Cave-ins . | . . . . . . Cave-ins Triggered . | . . . . . . Exploration Rate (%) 30 | 3 34 9 64 45 26 Regions Visited 5 Branch Regions 3 Pre-discovered Areas 2 | . . . 1 1 . Known Exits Taken 4 | . 1 1 1 1 . Unknown Exits Taken 1 | 1 . . . . . Scrap Searched . | . . . . . . Spaces Dug . | . . . . . . Terrain Destroyed 76 | . 27 . . . 49 Melee . | . . . . . . Projectile 2 | . . . . . 2 AOE 74 | . 27 . . . 47 Terrain Rammed . | . . . . . . Walls Destroyed . | . . . . . . Machines Disabled . | . . . . . . Actions | -11 -10 -10 -10 -9 -8 --------- Run | Yrd Mat Min Exi Min Mat Total 1117 | 44 214 28 229 272 330 Wait 155 | . . . . 113 42 Move 886 | 34 201 28 228 159 236 Hop . | . . . . . . Pick Up 11 | 5 4 . . . 2 Fast Attach 6 | . 2 . 1 . 3 Attach 11 | 4 . . . . 7 Detach . | . . . . . . Swap 7 | 1 4 . . . 2 Drop 1 | . . . . . 1 Fire 28 | . 3 . . . 25 Melee 12 | . . . . . 12 Ram . | . . . . . . Kick . | . . . . . . Crush . | . . . . . . Escape Stasis . | . . . . . . Rewire . | . . . . . . Trap . | . . . . . . Miscellaneous . | . . . . . . Route ------- -11/Scrapyard -10/Materials (discovered 2 exits: [*Mat] / *Min) -10/Mines -10/Exiles -9/Mines -8/Materials (discovered 1 exit: *Fac) History --------- Turn | Location | Event 4 | -11/Scrapyard | Discovered new exit (range 15) 54 | -11/Scrapyard | Entered Materials 212 | -10/Materials | Discovered new exit (range 14) 214 | -10/Materials | Discovered new exit (range 15) 224 | -10/Materials | Identified exit to Mines 224 | -10/Materials | Entered Mines 237 | -10/Mines | Deemed a non-threat by the Exiles lab entrance 237 | -10/Mines | Discovered new exit (range 5) 239 | -10/Mines | Identified exit to Exiles 240 | -10/Mines | Entered Exiles 255 | -10/Exiles | Met 8R-AWN 264 | -10/Exiles | Met EX-HEX 280 | -10/Exiles | Met EX-BIN 286 | -10/Exiles | Aligned with FarCom system 287 | -10/Exiles | Given EX-Vault access code 301 | -10/Exiles | Build established: Mutant 302 | -10/Exiles | Opened EX-Vault 307 | -10/Exiles | Found Modified TNC 319 | -10/Exiles | Warned to stay clear of 0b10 Research branches 336 | -10/Exiles | Met EX-DEC 346 | -10/Exiles | Learned location of Zion (-7) 362 | -10/Exiles | Discovered new exit (range 14) 369 | -10/Exiles | Identified exit to Mines 370 | -10/Exiles | Left Exiles lab with Modified TNC 370 | -10/Exiles | Entered Mines 402 | -9/Mines | Learned location of Storage (-9) 568 | -9/Mines | Discovered new exit (range 5) 571 | -9/Mines | Identified exit to Materials 573 | -9/Mines | Entered Materials 573 | -8/Materials | Evolved 4 slots: Utility x3, Weapon x1 704 | -8/Materials | Garrison activated, responded to threat 738 | -8/Materials | Core integrity fell below 50% 763 | -8/Materials | Discovered new exit (range 13) 766 | -8/Materials | Lost 9 parts (4n5w) 769 | -8/Materials | Identified exit to Factory 922 | -8/Materials | Core integrity fell below 20% 929 | -8/Materials | Destroyed by G-47 Trooper with Particle Gun Last Messages --------------- K-01 Serf collects debris. EXIT=IDENTIFIED: FACTORY K-01 Serf collects debris. Acquired Assault Cannon. G-47 Trooper knocked back. Lgt. Assault Rifle destroyed. L-31 Rogue knocked back. L-31 Rogue destroyed. Acquired Katana. Acquired 22 matter. G-47 Trooper Aluminum Leg severed. G-47 Trooper destroyed. Acquired 24 matter. Acquired 3 matter. G-47 Trooper destroyed. Acquired 52 matter. G-47 Trooper Aluminum Leg severed. Assault Cannon destroyed. Destroyed Heat Sink. Y-45 Defender destroyed. Map ----- +----------------------------------------------------+ | | | | | | | | | | | | | | | ?????????????????????????????????????????????????? | | ?????????????????????????????????????????????????? | | ?????????????????????????????????????????????????? | | ?????????????????????????????????????????????????? | | ?????????????????????????????????????????????????? | | ?????????????????????????????????????????????????? | | ?????????????????????????????????????????????????? | | ?????????????????????????????????????????????????? | | ?????????????????????????????????????????????????? | | ?????????????????????????????????????????????????? | | ?????????????????????????????????????????????????? | | ?????????????????????????????????????????????????? | | ??????????????????????########???????????????????? | | ???????????????#??????# #???????????????????? | | ???????????????# "????# #???????????????????? | | ???????????????# ??# #???????????????????? | | ???????????????+ # * ] #???????????????????? | | ?????????????????[ /g%= #???????????????????? | | ??????????????????????# g@ #???????????????????? | | ???????????# #### ##+##################???????? | | ???????????+ ????? | | ???????????# ????? | | ???????????# ##+##### ##+#########???????????? | | ???????????????????????# # #?????????????a?? | | ???????????????????????#^%# T #???????????????? | | ??????????????????????##^^# #???????????????? | | ??????????????????????#"[*+= #???????????????? | | ??????????????????????## [#! % ##??????????????? | | ???????????????????????# !# w "#??????????????? | | ???????????????????????#= ###+#####??????????????? | | ???????????????????????# ####??????????????? | | ????????????????######## / ???????? | | ????????????????# # ##############?????????? | | ????????????????# # #??????????????????????? | | ????????????????# + +??????????????????????? | | ????????????????# # #??????????????????????? | | ????????????????# / + #??????????????????????? | | ????????????????# # #??????????????????????? | | ??????????############## #??????????????????????? | | ??????????# + ######################## | | ??????????# # | | ??????????# # | | ??????????# + | +----------------------------------------------------+ Best States ------------- Heat Dissipation 31 Energy Generation 5 Energy Capacity 100 Matter Stores 212 Matter Capacity 300 Sight Range 16 Terrain Scan Density 10 Evasion (%) 53 Recoil Reduction 2 Item Schematics ----------------- None Robot Schematics ------------------ None Fabricated ------------ Nothing Repaired ---------- Nothing Alien Tech Used ----------------- None Achievements -------------- None Challenges ------------ None Game ------ Seed ShrapnelMissileActivator Manual? 0 Play Time 00:14:19 Cumulative 47.6 hours Start 2025.07.13 @ 21:58:11 End 2025.07.13 @ 22:08:09 Sessions 1 Manual Loads 0 Difficulty Rogue Special Mode None Game No. 224 Rogue 224 Adventurer 0 Explorer 0 Win Type - Total 0 Types 0/0/0/0/0/0/0/0/0/0 Lore% 32 Gallery% 26 Achievement% 23 Wizard Run 0 Options --------- Layout 2 ASCII 0 Keyboard 0 Movement Mouse Keybinds 0 Fullscreen 1 Font 24/Smallcaps Map View 50x44 Zoom Use 0% Tactical HUD 0 Map Filters NONE Filters NONE Steam 1 RUN: 34e4780f-c95a-4361-b512-2b71015ff3f6